bitfinex/quotes_ETHUSD_20250909
["timestamp","ask_amount","ask_price","bid_price","bid_amount"]
[1757459269005,1.245,4316.4,4316.3,9.55011785]
[1757459270713,0.7638,4316.4,4316.3,9.55011785]
[1757459272021,1.245,4316.4,4316.3,9.55011785]
[1757459273254,1.245,4316.4,4316.3,9.54911785]
[1757459275263,0.001,4316.4,4316.3,11.20474567]
[1757459275462,0.001,4316.4,4316.3,6.56156366]
[1757459275463,1.245,4316.4,4316.3,6.56156366]
[1757459275686,1.245,4316.4,4316.3,5.31679911]
[1757459281827,1.245,4316.4,4316.3,5.31879911]
[1757459282865,1.2277,4316.4,4316.3,5.31879911]
[1757459284357,1.2277,4316.4,4316.3,1.24722618]
[1757459284665,1.2277,4316.4,4316.3,2.31879911]
[1757459285230,1.2277,4316.4,4316.3,3.56402529]
[1757459285459,1.2277,4316.4,4316.3,3.67922529]
[1757459286042,0.001,4316.4,4316.3,3.97432529]
[1757459286368,0.001,4316.4,4316.3,8.49537379]
[1757459286572,0.001,4316.4,4316.3,10.15100161]
[1757459287040,0.001,4316.4,4316.3,9.28737379]
[1757459288276,0.001,4316.4,4316.3,8.96756891]
[1757459289073,0.001,4316.4,4316.3,8.59186891]
[1757459289260,0.001,4316.4,4316.3,8.96756891]
[1757459292587,0.001,4316.4,4316.3,12.02021013]
[1757459293253,0.001,4316.4,4316.3,12.39591013]
[1757459293454,0.026,4316.8,4316.3,12.39591013]
[1757459293455,0.026,4316.8,4316.7,3.10858442]
[1757459293651,0.026,4316.8,4316.7,10.6236087]
[1757459293847,0.026,4316.8,4316.7,10.89554286]
[1757459294450,0.026,4316.8,4316.7,11.34864286]
[1757459294650,0.026,4316.8,4316.7,11.72434286]
[1757459294890,0.026,4316.8,4316.7,11.34864286]
[1757459295857,0.026,4316.8,4316.7,11.44131772]
[1757459297592,0.026,4316.8,4316.7,11.81701772]
[1757459298089,0.026,4316.8,4316.7,11.44131772]
[1757459298294,0.026,4316.8,4316.7,7.56031772]
[1757459298602,0.026,4316.8,4316.7,11.43931772]
[1757459299469,0.026,4316.8,4316.7,10.98621772]
[1757459300073,0.026,4316.8,4316.7,12.6431868]
[1757459300517,0.026,4316.8,4316.7,10.98621772]
[1757459302461,0.026,4316.8,4316.7,11.10141772]
[1757459302665,0.026,4316.8,4316.7,11.55451772]
[1757459302865,0.026,4316.8,4316.7,11.93021772]
[1757459303066,0.001,4317.2,4317.0,6.10842344]
[1757459303310,0.001,4317.2,4317.0,14.91833918]
[1757459303472,0.001,4317.2,4317.0,15.78173918]
[1757459303672,0.001,4317.2,4317.0,14.12576611]
[1757459303874,0.001,4317.2,4317.0,14.33532002]
[1757459306707,0.001,4317.2,4317.0,13.88222002]
[1757459307075,0.001,4317.2,4317.0,13.7895576]
[1757459310307,0.001,4317.2,4317.0,14.2426576]
[1757459310602,0.001,4317.2,4317.0,13.7895576]
[1757459313054,0.3135,4317.1,4317.0,9.6184576]
[1757459313211,1.2307,4317.1,4317.0,13.4904576]
[1757459314432,0.001,4317.1,4317.0,13.8025576]
[1757459314740,0.001,4317.1,4317.0,10.26101638]
[1757459314942,0.001,4317.1,4317.0,14.13301638]
[1757459317949,0.4526,4317.1,4317.0,13.82091638]
[1757459318157,0.7651,4317.1,4317.0,13.4904576]
[1757459321871,0.7651,4317.1,4316.9,1.59398161]
[1757459321872,1.2307,4317.1,4316.9,1.59398161]
[1757459322043,0.4656,4317.0,4316.6,1.66128738]
[1757459322239,0.4656,4317.0,4316.6,0.002]
[1757459322436,0.3125,4316.7,4316.6,0.002]
[1757459322858,1.2252,4316.7,4316.6,0.002]
[1757459323058,1.2252,4316.7,4316.6,2.31863809]
[1757459325858,0.3125,4316.7,4316.6,2.31863809]
[1757459330547,0.4666,4317.1,4317.0,2.31642344]
[1757459330752,0.3103,4317.1,4317.0,2.33958767]
[1757459330953,0.3103,4317.1,4317.0,2.31642344]
[1757459331987,0.3103,4317.1,4317.0,2.43162344]
[1757459332187,1.2261,4317.1,4317.0,2.43162344]
[1757459338482,0.7759,4317.1,4317.0,2.43162344]
[1757459339210,0.3103,4317.1,4317.0,2.43162344]
[1757459342698,0.001,4317.1,4317.0,2.43162344]
[1757459343293,0.2991,4317.1,4317.0,2.43162344]
[1757459344674,1.2577,4317.1,4317.0,2.43162344]
[1757459345324,0.001,4317.1,4317.0,2.43162344]
[1757459345670,0.2977,4317.1,4317.0,2.43162344]
[1757459346111,1.2577,4317.1,4317.0,2.43162344]
[1757459348810,0.2977,4317.1,4317.0,2.43162344]
[1757459350553,0.92097,4317.1,4317.0,0.1152]
[1757459350738,1.38367,4317.1,4317.0,0.1152]
[1757459351670,1.38367,4317.1,4317.0,2.43162344]
[1757459353224,1.2577,4317.1,4317.0,2.43162344]
[1757459353423,0.795,4317.1,4317.0,2.43162344]
[1757459354865,0.2977,4317.1,4317.0,2.43162344]
[1757459357150,0.2977,4317.1,4317.0,0.1152]
[1757459357351,0.2977,4317.1,4317.0,2.43162344]
[1757459359467,0.2977,4317.1,4317.0,0.1152]
[1757459359468,0.795,4317.1,4317.0,0.1152]
[1757459359688,0.795,4317.1,4316.8,0.002]
[1757459359689,1.38367,4317.1,4316.8,0.002]
[1757459359984,1.38367,4317.1,4316.8,0.1172]
[1757459359985,0.4627,4317.0,4316.8,0.1172]
[1757459360275,0.138467,4316.9,4316.8,0.1172]
[1757459360441,1.395167,4316.9,4316.8,0.1172]
[1757459366755,0.436567,4316.9,4316.8,0.1172]
[1757459366945,0.2981,4316.9,4316.8,0.1172]
[1757459367282,3.891,4317.0,4316.8,0.1172]
[1757459367780,0.2967,4316.9,4316.8,0.1172]
[1757459368353,0.12697,4317.1,4316.8,2.73882143]
[1757459368552,3.887,4316.9,4316.8,2.73882143]
[1757459368752,3.887,4316.9,4316.8,0.1172]
[1757459368952,4.1837,4316.9,4316.8,0.1172]
[1757459369161,5.1437,4316.9,4316.8,0.1172]
[1757459369685,4.1837,4316.9,4316.8,0.1172]
[1757459370193,4.1827,4316.9,4316.8,0.1172]
[1757459370405,5.1427,4316.9,4316.8,0.1172]
[1757459370595,5.65717,4316.9,4316.8,0.1172]
[1757459375701,7.9402471,4316.9,4316.8,0.1172]
[1757459376002,7.9402471,4316.9,4316.8,0.002]
[1757459376498,7.9382471,4316.9,4316.8,0.002]
[1757459385909,3.6249471,4316.9,4316.8,0.002]
[1757459386110,4.51167,4316.9,4316.8,0.3109]
[1757459386319,6.8281471,4316.9,4316.8,0.3109]
[1757459386950,0.62967,4316.9,4316.8,0.7702]
[1757459387167,0.001,4317.1,4316.8,1.2428]
[1757459387329,3.883,4317.0,4316.9,0.9319]
[1757459387644,3.883,4317.0,4316.9,1.2408]
[1757459388541,6.19942344,4317.0,4316.9,0.7815]
[1757459388748,3.883,4317.0,4316.9,0.7815]
[1757459389448,6.19942344,4317.0,4316.9,0.7815]
[1757459389752,6.19942344,4317.0,4316.9,0.3089]
[1757459390139,3.883,4317.0,4316.9,0.3089]
[1757459391229,3.883,4317.0,4316.9,0.7815]
[1757459391943,3.884,4317.0,4316.9,0.7815]
[1757459392854,3.884,4317.0,4316.9,0.3089]
[1757459393015,6.20042344,4317.0,4316.9,0.3089]
[1757459393217,6.20042344,4317.0,4316.8,0.002]
[1757459393419,2.3164771,4316.9,4316.8,0.002]
[1757459393721,3.4958771,4316.9,4316.8,0.002]
[1757459395555,2.6074771,4316.9,4316.8,0.002]
[1757459397136,3.4958771,4316.9,4316.8,0.002]
[1757459397659,3.0665771,4316.9,4316.8,0.002]
[1757459397864,4.13427129,4316.9,4316.8,0.002]
[1757459398016,1.06769419,4316.9,4316.8,0.3109]
[1757459398358,6.1954771,4316.9,4316.8,0.3109]
[1757459398558,6.1954771,4316.9,4316.8,0.002]
[1757459399652,3.879,4316.9,4316.8,0.002]
[1757459399857,6.1954771,4316.9,4316.8,0.002]
[1757459400617,6.4864771,4316.9,4316.8,0.002]
[1757459400825,8.31289278,4316.9,4316.8,0.002]
[1757459401436,8.52971201,4316.9,4316.8,0.002]
[1757459404738,8.65984657,4316.9,4316.8,0.002]
[1757459406483,12.66872222,4316.9,4316.8,0.002]
[1757459406801,12.33793416,4316.7,4316.6,1e-08]
[1757459407000,25.2431059,4316.7,4316.6,1e-08]
[1757459407299,26.4597059,4316.7,4316.6,1e-08]
[1757459407506,32.95506987,4316.7,4316.6,1e-08]
[1757459408070,32.73825064,4316.7,4316.6,1e-08]
[1757459408304,2.31679911,4316.3,4316.2,1e-08]
[1757459408508,10.10299911,4316.3,4315.9,1e-08]
[1757459408708,6.42096014,4316.0,4315.9,1e-08]
[1757459409004,10.4300947,4316.0,4315.9,1e-08]
[1757459409166,10.92980097,4316.0,4315.9,1e-08]
[1757459409372,11.60998156,4316.0,4315.9,1e-08]
[1757459411508,11.65410528,4316.0,4315.9,1e-08]
[1757459412203,11.74686719,4316.0,4315.9,1e-08]
[1757459418134,11.74386719,4316.0,4315.9,1e-08]
[1757459419534,11.74386719,4316.0,4315.9,0.28760001]
[1757459419535,10.52726719,4316.0,4315.9,0.28760001]
[1757459419829,10.52626719,4316.0,4315.9,1e-08]
[1757459420313,6.65126719,4316.0,4315.9,1e-08]
[1757459420510,3.875,4316.0,4315.9,1.21130001]
[1757459422216,0.4342,4316.5,4315.9,1.21130001]
[1757459422423,3.875,4316.4,4316.0,0.9237]
[1757459422637,3.875,4316.4,4315.9,2.60460151]
[1757459422638,0.1152,4316.0,4315.9,2.31700151]
[1757459422845,3.9902,4316.0,4315.9,2.31700151]
[1757459423147,14.458,4316.7,4316.1,2.31689647]
[1757459423352,0.1152,4316.4,4316.2,0.9237]
[1757459423565,3.877,4316.3,4316.1,2.31689647]
[1757459424050,3.877,4316.3,4316.2,0.2876]
[1757459424251,3.877,4316.3,4316.2,1.2113]
[1757459425614,3.877,4316.3,4316.2,3.52815278]
[1757459425817,0.1152,4316.4,4316.3,2.31679911]
[1757459426043,0.1152,4316.4,4316.3,3.24049911]
[1757459426044,3.9912,4316.4,4316.3,3.24049911]
[1757459426247,3.9912,4316.4,4316.3,3.52809911]
[1757459426447,3.9912,4316.4,4316.3,1.2113]
[1757459427017,3.9912,4316.4,4316.3,3.52809911]
[1757459430342,1.779,4316.7,4316.3,4.11259916]
[1757459430546,1.779,4316.7,4316.5,2.31669176]
[1757459430547,3.875,4316.6,4316.5,2.31669176]
[1757459430855,1.779,4316.7,4316.6,5.43183809]
[1757459431053,5.655,4316.7,4316.6,6.64313809]
[1757459431452,0.001,4316.8,4316.7,5.31658442]
[1757459431637,0.001,4316.8,4316.7,7.43625667]
[1757459431845,1.936,4316.8,4316.7,7.72145667]
[1757459433148,0.001,4316.8,4316.7,7.72145667]
[1757459435339,1.78,4317.2,4317.1,2.31636978]
[1757459435553,1.78,4317.2,4317.1,6.53346978]
[1757459435867,0.001,4317.2,4317.1,7.83598626]
[1757459443586,0.001,4317.2,4317.1,6.90408626]
[1757459443744,0.001,4317.2,4317.1,7.33968626]
[1757459443945,0.001,4317.2,4317.1,7.83598626]
[1757459448634,0.001,4317.2,4317.1,6.90408626]
[1757459448843,0.001,4317.2,4317.1,7.83598626]
[1757459449205,0.001,4317.2,4317.1,7.40038626]
[1757459449503,0.001,4317.2,4317.1,7.83598626]
[1757459450290,0.001,4317.2,4317.1,7.40038626]
[1757459450625,0.001,4317.2,4317.1,7.83598626]
[1757459450921,0.001,4317.2,4317.1,6.61888626]
[1757459451299,0.001,4317.2,4317.1,6.90408626]
[1757459452149,0.001,4317.2,4317.1,7.33968626]
[1757459453046,0.001,4317.2,4317.1,7.83598626]
[1757459455422,0.001,4317.2,4317.1,7.33968626]
[1757459456254,0.001,4317.2,4317.1,6.15236978]
[1757459456755,0.001,4317.2,4317.1,6.64866978]
[1757459458724,0.001,4317.2,4317.1,10.51466978]
[1757459460876,0.001,4317.2,4317.1,11.30666978]
[1757459462376,0.001,4317.2,4317.1,11.30866978]
[1757459462554,0.001,4317.2,4317.1,13.01490972]
[1757459475719,0.001,4317.2,4317.1,13.02870972]
[1757459478992,0.001,4317.2,4317.1,14.6879971]
[1757459479483,0.001,4317.2,4317.1,13.02870972]
[1757459480523,0.001,4317.2,4317.1,13.01220972]
[1757459483342,0.001,4317.2,4317.1,14.6714971]
[1757459483752,0.001,4317.2,4317.1,14.6704971]
[1757459486414,0.001,4317.2,4317.1,13.01120972]
[1757459487644,0.3013,4317.2,4317.1,11.79680972]
[1757459488016,0.785,4317.2,4317.1,11.79680972]
[1757459488424,1.2127,4317.2,4317.1,7.9574524]
[1757459488636,1.2127,4317.2,4317.1,6.29856978]
[1757459489033,1.2127,4317.2,4317.1,9.29856978]
[1757459491645,0.785,4317.2,4317.1,9.29856978]
[1757459492881,0.001,4317.2,4317.1,9.29856978]
[1757459493039,0.001,4317.2,4317.1,11.10735925]
[1757459494436,0.001,4317.2,4317.1,11.59975925]
[1757459494634,0.001,4317.2,4317.1,12.04375925]
[1757459495137,0.001,4317.2,4317.1,11.55135925]
[1757459495450,0.001,4317.2,4317.1,9.60216978]
[1757459497040,0.001,4317.2,4317.1,9.29856978]
[1757459498353,0.2876,4317.2,4317.1,9.29856978]
[1757459499583,1.2538,4317.2,4317.1,9.29856978]
[1757459500381,1.2538,4317.2,4317.1,5.43356978]
[1757459504859,1.37938,4317.2,4317.1,5.43356978]
[1757459505803,1.2538,4317.2,4317.1,5.43356978]
[1757459507769,0.2876,4317.2,4317.1,5.43356978]
[1757459510399,0.001,4317.2,4317.1,5.43356978]
[1757459510600,0.2895,4317.2,4317.1,5.43356978]
[1757459510807,1.2538,4317.2,4317.1,5.43356978]
[1757459511495,0.2895,4317.2,4317.1,5.43356978]
[1757459511698,0.2895,4317.2,4317.1,5.73716978]
[1757459511699,0.001,4317.2,4317.1,5.73716978]
[1757459511890,0.001,4317.2,4317.1,6.98653146]
[1757459512705,0.001,4317.2,4317.1,6.54253146]
[1757459513023,0.001,4317.2,4317.1,6.23893146]
[1757459515396,0.2876,4317.2,4317.1,5.43356978]
[1757459515608,0.7811,4317.2,4317.1,5.43356978]
[1757459516396,0.2876,4317.2,4317.1,5.43356978]
[1757459517326,0.001,4317.2,4317.1,5.43356978]
[1757459518030,0.2876,4317.2,4317.1,5.43356978]
[1757459521434,0.001,4317.2,4317.1,5.43356978]
[1757459521646,0.2895,4317.2,4317.1,5.43356978]
[1757459522256,0.001,4317.2,4317.1,5.43356978]
[1757459523246,1.2502,4317.2,4317.1,5.43356978]
[1757459524029,0.7844,4317.2,4317.1,5.43356978]
[1757459524222,0.2913,4317.2,4317.1,5.43356978]
[1757459524423,0.001,4317.2,4317.1,5.43356978]
[1757459525456,0.7893,4317.2,4317.1,5.43356978]
[1757459525627,1.2534,4317.2,4317.1,5.43356978]
[1757459526027,0.7893,4317.2,4317.1,5.43356978]
[1757459526224,1.2534,4317.2,4317.1,5.43356978]
[1757459526426,1.2534,4317.2,4317.1,3.1172]
[1757459526620,1.37894,4317.2,4317.1,3.1172]
[1757459526854,1.37894,4317.2,4317.1,0.1172]
[1757459527055,1.37894,4317.2,4317.1,0.002]
[1757459527270,0.42174,4317.2,4317.1,0.002]
[1757459527567,4.1612,4317.2,4317.1,0.1172]
[1757459527738,5.1184,4317.2,4317.1,0.1172]
[1757459527935,4.6543,4317.2,4317.1,2.43356978]
[1757459528454,5.1184,4317.2,4317.1,2.43356978]
[1757459529240,4.1612,4317.2,4317.1,2.43356978]
[1757459529441,0.001,4317.2,4317.1,3.67606978]
[1757459529839,0.001,4317.2,4317.1,2.72746978]
[1757459530369,0.001,4317.2,4317.1,3.67606978]
[1757459530769,0.001,4317.2,4317.1,3.19486978]
[1757459531137,0.001,4317.2,4317.1,2.43356978]
[1757459532241,0.001,4317.2,4317.1,2.72746978]
[1757459532441,0.001,4317.2,4317.1,3.19486978]
[1757459532686,0.001,4317.2,4317.1,3.67606978]
[1757459533037,0.001,4317.2,4317.1,7.27532274]
[1757459534480,0.001,4317.2,4317.1,6.32672274]
[1757459534679,0.001,4317.2,4317.1,7.27532274]
[1757459538883,0.001,4317.2,4317.1,6.32672274]
[1757459540379,0.001,4317.2,4317.1,7.27532274]
[1757459542995,0.001,4317.2,4317.1,6.79412274]
[1757459543158,0.001,4317.2,4317.1,6.32672274]
[1757459544304,0.001,4317.2,4317.1,6.79412274]
[1757459544506,0.001,4317.2,4317.1,6.32672274]
[1757459545090,0.001,4317.2,4317.1,6.79412274]
[1757459545766,0.001,4317.2,4317.1,7.27532274]
[1757459546679,0.001,4317.2,4317.1,6.79412274]
[1757459546881,0.001,4317.2,4317.1,6.03282274]
[1757459547293,0.001,4317.2,4317.1,6.32672274]
[1757459547496,0.001,4317.2,4317.1,6.79412274]
[1757459547805,0.001,4317.2,4317.1,7.27532274]
[1757459548980,0.001,4317.2,4317.1,6.32672274]
[1757459549176,0.2962,4317.2,4317.1,5.43356978]
[1757459549378,1.2534,4317.2,4317.1,3.1172]
[1757459549986,1.2534,4317.2,4317.1,0.1172]
[1757459550313,7.43371613,4317.2,4317.1,0.002]
[1757459550613,7.55925613,4317.2,4317.1,0.002]
[1757459550978,8.40648931,4317.2,4317.1,0.002]
[1757459551173,7.90648605,4317.2,4317.1,0.002]
[1757459551378,8.40574026,4317.2,4317.1,0.002]
[1757459551976,8.405481,4317.2,4317.1,0.002]
[1757459552197,7.90607123,4317.2,4317.1,0.002]
[1757459552472,12.19701821,4317.2,4317.1,0.002]
[1757459553505,11.27505955,4317.2,4317.1,0.002]
[1757459553688,10.77601557,4317.2,4317.1,0.002]
[1757459554281,10.55925613,4317.2,4317.1,0.002]
[1757459558912,6.69525613,4317.2,4317.1,0.002]
[1757459559119,10.56025613,4317.2,4317.1,0.002]
[1757459563314,2.31679911,4316.3,4316.2,0.002]
[1757459563488,8.75479911,4316.3,4316.2,0.002]
[1757459563685,9.93999911,4316.3,4316.2,0.002]
[1757459563999,10.03274918,4316.3,4316.2,0.002]
[1757459567101,6.16574918,4316.3,4316.2,0.002]
[1757459567426,10.88099679,4316.3,4316.2,0.002]
[1757459568937,13.88099679,4316.3,4316.2,0.002]
[1757459574145,13.88099679,4316.3,4315.8,1e-08]
[1757459574146,6.10901383,4315.9,4315.8,1e-08]
[1757459574439,10.09021383,4315.9,4315.8,1e-08]
[1757459574640,11.28601383,4315.9,4315.8,1e-08]
[1757459574821,13.15221077,4315.9,4315.8,1e-08]
[1757459580633,13.99709719,4315.9,4315.8,0.00200001]
[1757459581030,8.80544094,4315.9,4315.8,0.30230001]
[1757459581341,11.84121077,4315.9,4315.8,0.00200001]
[1757459581537,12.14871077,4315.9,4315.8,0.00200001]
[1757459581732,13.30704954,4315.9,4315.8,0.00200001]
[1757459582225,12.85504954,4315.9,4315.8,0.00200001]
[1757459582424,12.8638003,4315.9,4315.8,0.00200001]
[1757459582861,12.5563003,4315.9,4315.8,0.30890001]
[1757459583164,12.05764954,4315.9,4315.8,0.30890001]
[1757459583366,12.05764954,4315.9,4315.8,1.26070001]
[1757459583660,12.05764954,4315.9,4315.8,0.77570001]
[1757459584364,11.26564954,4315.9,4315.8,0.77570001]
[1757459584560,11.26564954,4315.9,4315.8,0.30890001]
[1757459584759,11.26564954,4315.9,4315.8,0.00200001]
[1757459585134,11.76434186,4315.9,4315.8,0.00200001]
[1757459585354,12.05284186,4315.9,4315.8,0.00200001]
[1757459586261,11.76434186,4315.9,4315.8,0.00200001]
[1757459587274,11.89427244,4315.9,4315.8,0.00200001]
[1757459588668,11.89427244,4315.9,4315.8,0.30890001]
[1757459589270,11.89427244,4315.9,4315.8,0.77570001]
[1757459589865,11.89427244,4315.9,4315.8,0.00200001]
[1757459590070,12.18277244,4315.9,4315.8,0.00200001]
[1757459591881,11.83640309,4315.9,4315.8,0.00200001]
[1757459592047,3.22426751,4315.8,4315.7,1e-08]
[1757459592243,5.31718518,4315.6,4314.9,0.4688]
[1757459592467,2.31738969,4315.2,4314.9,0.4688]
[1757459592653,6.18338969,4315.2,4314.9,0.4688]
[1757459592869,7.8273535,4315.2,4315.1,0.3469]
[1757459593380,7.82750451,4315.2,4315.1,0.3469]
[1757459594149,7.82750451,4315.2,4315.1,0.8137]
[1757459594808,7.82750451,4315.2,4315.1,1.2987]
[1757459596086,7.82750451,4315.2,4315.1,0.04]
[1757459596087,8.11600451,4315.2,4315.1,0.04]
[1757459597599,8.11600451,4315.2,4315.1,0.042]
[1757459597961,3.22464339,4315.1,4314.9,0.002]
[1757459598159,2.31765823,4314.7,4314.6,0.002]
[1757459598362,11.25215823,4314.7,4314.6,0.002]
[1757459598598,12.09862957,4314.7,4314.6,0.002]
[1757459599395,12.09854113,4314.7,4314.6,0.002]
[1757459599703,15.69859384,4314.7,4314.6,0.002]
[1757459601769,3.10981939,4314.4,4314.3,1e-08]
[1757459602012,13.21927057,4314.4,4314.3,1e-08]
[1757459602184,14.35410924,4314.4,4314.3,1e-08]
[1757459603468,17.35410924,4314.4,4314.3,1e-08]
[1757459603675,19.01625986,4314.4,4314.3,1e-08]
[1757459603973,18.66930229,4314.4,4314.3,1e-08]
[1757459604178,18.16992119,4314.4,4314.3,1e-08]
[1757459604984,18.66879521,4314.4,4314.3,1e-08]
[1757459605187,18.16992119,4314.4,4314.3,1e-08]
[1757459609311,14.01042119,4314.4,4314.3,0.30690001]
[1757459609503,10.84797001,4314.4,4314.3,1.25870001]
[1757459610700,10.84797001,4314.4,4314.3,0.30690001]
[1757459611022,10.84797001,4314.4,4314.3,1e-08]
[1757459612703,10.84797001,4314.4,4314.3,0.31540001]
[1757459612908,10.84797001,4314.4,4314.3,1.25520001]
[1757459614510,6.97997001,4314.4,4314.3,1.25520001]
[1757459614716,10.84797001,4314.4,4314.3,1.25520001]
[1757459614917,10.84797001,4314.4,4314.3,0.77700001]
[1757459615111,6.97997001,4314.4,4314.3,0.77700001]
[1757459615315,10.84797001,4314.4,4314.3,0.77700001]
[1757459616733,10.84797001,4314.4,4314.3,1.25520001]
[1757459617093,10.84797001,4314.4,4314.3,0.77700001]
[1757459619738,10.84797001,4314.4,4314.3,0.31540001]
[1757459620726,10.84797001,4314.4,4314.3,0.77700001]
[1757459621342,11.0647339,4314.4,4314.3,1.25520001]
[1757459621840,7.19673391,4314.4,4314.3,1.25520001]
[1757459622045,11.06473391,4314.4,4314.3,1.25520001]
[1757459622230,11.56413646,4314.4,4314.3,1.25520001]
[1757459622435,11.69424117,4314.4,4314.3,1.25520001]
[1757459625132,11.69424117,4314.4,4314.3,0.77700001]
[1757459625567,11.69435746,4314.4,4314.3,0.77700001]
[1757459626238,11.69435746,4314.4,4314.3,1e-08]
[1757459629830,11.6956119,4314.4,4314.3,1e-08]
[1757459631761,7.8276119,4314.4,4314.3,1e-08]
[1757459631960,11.19495491,4314.4,4314.3,1e-08]
[1757459632269,11.6956119,4314.4,4314.3,1e-08]
[1757459633841,11.9914119,4314.4,4314.3,1e-08]
[1757459635273,8.1234119,4314.4,4314.3,1e-08]
[1757459635455,11.49075491,4314.4,4314.3,1e-08]
[1757459635639,11.9914119,4314.4,4314.3,1e-08]
[1757459636562,11.6966119,4314.4,4314.3,1e-08]
[1757459636767,11.6966119,4314.4,4314.3,0.77700001]
[1757459639570,11.6966119,4314.4,4314.3,0.31540001]
[1757459640493,11.69741197,4314.4,4314.3,0.31540001]
[1757459641687,11.69641197,4314.4,4314.3,0.31540001]
[1757459642175,11.69641197,4314.4,4314.3,1e-08]
[1757459642698,11.69641197,4314.4,4314.3,0.30890001]
[1757459643198,11.69641196,4314.4,4314.3,0.30890001]
[1757459644259,7.82941196,4314.4,4314.3,0.30890001]
[1757459644465,6.53360435,4314.4,4314.3,1.23980001]
[1757459645264,6.18581939,4314.4,4314.3,1.23980001]
[1757459652091,6.49771939,4314.4,4314.3,1e-08]
[1757459652399,7.30988665,4314.4,4314.3,1e-08]
[1757459652588,6.96251939,4314.4,4314.3,1e-08]
[1757459652790,8.67740196,4314.4,4314.3,1e-08]
[1757459653195,9.11020196,4314.4,4314.3,1e-08]
[1757459655116,6.10992684,4314.2,4314.1,1e-08]
[1757459655413,12.34853922,4313.9,4313.8,1e-08]
[1757459655587,21.0931058,4313.9,4313.8,1e-08]
[1757459655786,21.9907058,4313.9,4313.8,1e-08]
[1757459656313,15.75225462,4313.9,4313.8,1e-08]
[1757459664301,15.31945462,4313.9,4313.8,1e-08]
[1757459665790,14.85465462,4313.9,4313.8,1e-08]
[1757459667015,15.75225462,4313.9,4313.8,1e-08]
[1757459667921,10.98765462,4313.9,4313.8,1e-08]
[1757459668098,14.54275462,4313.9,4313.8,1e-08]
[1757459668912,14.54275462,4313.9,4313.8,0.30890001]
[1757459669112,10.67575462,4313.9,4313.8,0.77700001]
[1757459669297,10.67575462,4313.9,4313.8,0.77170001]
[1757459669504,14.54275462,4313.9,4313.8,0.30890001]
[1757459670532,14.54275462,4313.9,4313.8,0.77170001]
[1757459670704,14.54275462,4313.9,4313.8,1.23980001]
[1757459672030,14.54275462,4313.9,4313.8,0.77170001]
[1757459672528,14.54275462,4313.9,4313.8,0.30890001]
[1757459673324,10.67575462,4313.9,4313.8,0.30890001]
[1757459673652,10.67575462,4313.9,4313.8,1.23730001]
[1757459673653,10.96508804,4313.9,4313.8,1.23730001]
[1757459678757,10.96508804,4313.9,4313.8,0.30890001]
[1757459678962,10.96508804,4313.9,4313.8,1e-08]
[1757459679269,12.30267879,4313.9,4313.8,1e-08]
[1757459679575,12.30267879,4313.9,4313.8,0.29790001]
[1757459680123,12.30267879,4313.9,4313.8,1e-08]
[1757459680336,12.60097879,4313.9,4313.8,1e-08]
[1757459681165,12.30267879,4313.9,4313.8,1e-08]
[1757459681354,12.30267879,4313.9,4313.8,0.29790001]
[1757459682130,12.51956007,4313.9,4313.8,0.29790001]
[1757459683280,12.64972399,4313.9,4313.8,1e-08]
[1757459683466,13.14959987,4313.9,4313.8,1e-08]
[1757459683829,13.14959987,4313.9,4313.8,0.29790001]
[1757459684881,9.28259987,4313.9,4313.8,0.29790001]
[1757459685090,13.14859987,4313.9,4313.8,0.72790001]
[1757459686567,13.14859987,4313.9,4313.8,0.29790001]
[1757459686956,13.14959987,4313.9,4313.8,0.29790001]
[1757459692298,13.14959987,4313.9,4313.8,0.72790001]
[1757459692515,11.81200912,4313.9,4313.8,1.22630001]
[1757459694915,11.81200912,4313.9,4313.8,0.72790001]
[1757459696380,11.81200912,4313.9,4313.8,0.29790001]
[1757459697410,12.11030912,4313.9,4313.8,1e-08]
[1757459699926,11.81200912,4313.9,4313.8,1e-08]
[1757459700107,13.33009197,4313.9,4313.8,1e-08]
[1757459700613,13.62839197,4313.9,4313.8,1e-08]
[1757459700926,14.58639197,4313.9,4313.8,1e-08]
[1757459701305,14.11609197,4313.9,4313.8,1e-08]
[1757459701518,13.32909197,4313.9,4313.8,1e-08]
[1757459701706,13.62739197,4313.9,4313.8,1e-08]
[1757459702426,14.56989197,4313.9,4313.8,1e-08]
[1757459704315,13.62739197,4313.9,4313.8,1e-08]
[1757459705332,13.32909197,4313.9,4313.8,0.30400001]
[1757459705507,13.32909197,4313.9,4313.8,1e-08]
[1757459706891,13.32909197,4313.9,4313.8,0.77230001]
[1757459707308,13.32909197,4313.9,4313.8,1.26220001]
[1757459708149,13.19892805,4313.9,4313.8,1.26220001]
[1757459708350,13.19892805,4313.9,4313.8,1e-08]
[1757459708530,13.50732805,4313.9,4313.8,1e-08]
[1757459709942,13.42085629,4313.9,4313.8,1e-08]
[1757459710129,13.90975629,4313.9,4313.8,1e-08]
[1757459710333,14.12710362,4313.9,4313.8,1e-08]
[1757459712355,13.63820362,4313.9,4313.8,1e-08]
[1757459714756,13.32980362,4313.9,4313.8,0.30400001]
[1757459714944,13.32980362,4313.9,4313.8,1e-08]
[1757459715375,14.12710362,4313.9,4313.8,1e-08]
[1757459715590,14.58070362,4313.9,4313.8,1e-08]
[1757459716698,13.63820362,4313.9,4313.8,1e-08]
[1757459717145,13.32980362,4313.9,4313.8,1e-08]
[1757459717589,13.63820362,4313.9,4313.8,1e-08]
[1757459717894,9.77320362,4313.9,4313.8,1e-08]
[1757459718103,13.32980362,4313.9,4313.8,1e-08]
[1757459718448,13.63820362,4313.9,4313.8,1e-08]
[1757459719051,9.77320362,4313.9,4313.8,1e-08]
[1757459719246,13.63820362,4313.9,4313.8,1e-08]
[1757459722694,9.46480362,4313.9,4313.8,0.30400001]
[1757459722853,13.32980362,4313.9,4313.8,0.30400001]
[1757459723178,13.32980362,4313.9,4313.8,1e-08]
[1757459723351,13.63820362,4313.9,4313.8,1e-08]